fUSD/lending_fUSD_20251108
["ID","MTS","AMOUNT","RATE_DAILY","PERIOD"]
[393409248,1762611044722,-500.0,0.0003225,120]
[393409249,1762611044732,-500.0,0.0003225,120]
[393409250,1762611044742,-500.0,0.0003225,120]
[393409251,1762611044752,-500.0,0.0003225,120]
[393409252,1762611044762,-500.0,0.0003225,120]
[393409253,1762611044772,-500.0,0.0003225,120]
[393409254,1762611044782,-500.0,0.0003225,120]
[393409255,1762611044791,-500.0,0.0003225,120]
[393409256,1762611044800,-500.0,0.0003225,120]
[393409257,1762611044810,-500.0,0.0003225,120]
[393409258,1762611044819,-500.0,0.0003225,120]
[393409259,1762611044828,-500.0,0.0003225,120]
[393409260,1762611044838,-500.0,0.0003225,120]
[393409261,1762611044848,-500.0,0.0003225,120]
[393409262,1762611044857,-500.0,0.0003225,120]
[393409263,1762611044869,-500.0,0.0003225,120]
[393409264,1762611044881,-500.0,0.0003225,120]
[393409265,1762611044890,-500.0,0.0003225,120]
[393409266,1762611044899,-500.0,0.0003225,120]
[393409267,1762611044909,-500.0,0.0003225,120]
[393409268,1762611044918,-500.0,0.0003225,120]
[393409269,1762611044930,-500.0,0.0003225,120]
[393409270,1762611044939,-500.0,0.0003225,120]
[393409271,1762611044949,-500.0,0.0003225,120]
[393409272,1762611044959,-2142.0,0.0003245,2]
[393409273,1762611044970,-7564.44736257,0.0003256,3]
[393409274,1762611045075,-474.80218113,0.0003256,3]
[393409275,1762611045087,-797.999294,0.0003256,3]
[393409282,1762611046124,-6652.16,0.0003256,3]
[393409298,1762611046539,-3530.0,0.0003256,3]
[393409299,1762611046569,-1038.168593,0.0003256,3]
[393409310,1762612088893,-487.02,0.00016438,2]
[393409312,1762612103659,2016308.28593728,0.00038991,60]
[393409335,1762612232256,-1000.0,0.00016626,2]
[393409337,1762612232266,-512.82898215,0.00016684,2]
[393409339,1762612232276,-500.0,0.00016783,2]
[393409341,1762612232285,-266.938,0.00016783,2]
[393409343,1762612232295,-500.0,0.00016783,2]
[393409345,1762612232306,-500.0,0.00016783,2]
[393409347,1762612232316,-500.0,0.00016783,2]
[393409349,1762612232326,-340.0,0.00016783,2]
[393409351,1762612232336,-500.0,0.00016783,2]
[393409353,1762612232346,-500.0,0.00016783,2]
[393409355,1762612232355,-500.0,0.00016783,2]
[393409357,1762612232365,-500.0,0.00016783,2]
[393409359,1762612232374,-500.0,0.00016783,2]
[393409361,1762612232384,-185.50853971,0.00016783,2]
[393409363,1762612232395,-500.0,0.00016783,2]
[393409365,1762612232407,-41908.3280606,0.00016784,2]
[393409367,1762612232419,-991.27421435,0.00016784,2]
[393409369,1762612232431,-18661.81133303,0.00016784,2]
[393409373,1762612232447,-29861.63141601,0.00016784,2]
[393409375,1762612232459,-8007.9999993,0.00016784,2]
[393409377,1762612232471,-800.0,0.00016784,2]
[393409380,1762612232483,-1118.98,0.00016784,2]
[393409403,1762612240316,-237776.39747671,0.00016784,2]
[393409405,1762612240326,-1000.0,0.00016784,2]
[393409407,1762612240336,-900.0,0.000175,6]
[393409409,1762612240525,-1800.0,0.000176,6]
[393409410,1762612240536,-2700.0,0.000177,6]
[393409411,1762612240546,-3600.0,0.000178,6]
[393409412,1762612240555,-368.20736952,0.00017852,2]
[393409413,1762612240565,-368.20736951,0.00017863,2]
[393409414,1762612240574,-368.20736951,0.00017874,2]
[393409415,1762612240583,-368.20736951,0.00017885,2]
[393409416,1762612240592,-368.20736951,0.00017896,2]
[393409417,1762612240602,-4500.0,0.000179,6]
[393409418,1762612240614,-368.20736951,0.00017908,2]
[393409419,1762612240623,-368.20736951,0.00017919,2]
[393409420,1762612240633,-368.20736951,0.0001793,2]
[393409421,1762612240642,-368.20736951,0.00017941,2]
[393409422,1762612240653,-486.73318593,0.00017952,2]
[393409423,1762612240668,-368.20736951,0.00017952,2]
[393409424,1762612240678,-167.04697749,0.00017952,3]
[393409425,1762612240688,-159.99659228,0.00017952,2]
[393409426,1762612240697,-501.50530848,0.00017973,2]
[393409427,1762612240706,-200.66885732,0.0001799,2]
[393409428,1762612240715,-500.0,0.00017999,2]
[393409429,1762612240725,-500.0,0.00017999,2]
[393409430,1762612240734,-235.7663589,0.00017999,2]
[393409431,1762612240743,-205.77849874,0.00017999,2]
[393409432,1762612240754,-465.30605957,0.00017999,2]
[393409433,1762612240763,-115045.96769971,0.00018,2]
[393409434,1762612240775,-5065800.32267626,0.00018,2]
[393409435,1762612240783,-160.05182826,0.00018152,2]
[393409436,1762612240793,-250.0,0.00018289,2]
[393409437,1762612240802,-150.43,0.000188,2]
[393409438,1762612240812,-512.82898208,0.00019856,2]
[393409439,1762612240822,-150.99,0.00020545,2]
[393409440,1762612240831,-926.88,0.00020545,2]
[393409441,1762612240840,-225.08,0.00020545,2]
[393409442,1762612240850,-9999.99,0.00020545,2]
[393409443,1762612240860,-7783.19,0.000229,7]
[393409444,1762612240869,-1000.0,0.0002301,7]
[393409445,1762612240878,-1000.0,0.0002301,7]
[393409446,1762612240888,-1000.0,0.0002301,7]
[393409447,1762612240898,-1000.0,0.0002301,7]
[393409448,1762612240908,-1000.0,0.0002301,7]
[393409449,1762612240917,-286.9,0.0002301,7]
[393409450,1762612240927,-512.82898208,0.00023029,2]
[393409451,1762612240936,-2000.0,0.000233,2]
[393409452,1762612240946,-804.0,0.00024529,2]
[393409453,1762612240955,-14269.6020521,0.00024531,2]
[393409454,1762612240965,-272761.38298436,0.000248,3]
[393409455,1762612240977,-2139.9068,0.000248,3]
[393409471,1762612244860,-260.27334784,0.000248,3]
[393409472,1762612245042,-4203.28050959,0.000248,3]
[393409473,1762612245115,-667.01589642,0.000248,3]
[393409477,1762612246782,-1365.04129916,0.00018052,2]
[393409478,1762612246792,-66112.26709026,0.000248,3]
[393409479,1762612246846,-672.0667485,0.000248,3]
[393409480,1762612246858,-647.31203061,0.000248,3]
[393409496,1762612484014,500.0,0.00039029,120]
[393409497,1762612484094,500.0,0.00039029,120]
[393409498,1762612484347,500.0,0.00039029,120]
[393409499,1762612484595,500.0,0.00039029,120]
[393409500,1762612484842,500.0,0.00039029,120]
[393409501,1762612485108,500.0,0.00039029,120]
[393409502,1762612485371,536.2992832,0.00039029,120]
[393409503,1762612830089,361.75,0.00013699,2]
[393409505,1762612876431,155.14,0.00010365,2]
[393409506,1762612876640,155.14,0.00010987,2]
[393409507,1762612876839,155.14,0.00011609,2]
[393409508,1762612877044,155.14,0.00012232,2]
[393409509,1762612877236,155.14,0.00012854,2]
[393409510,1762612877439,155.14,0.00013477,2]
[393409511,1762612877637,155.14,0.00014099,2]
[393409512,1762612877825,155.14,0.00014721,2]
[393409513,1762613056562,-155.14,0.00015344,2]
[393409514,1762613056584,-145.92832499,0.00015605,2]
[393409515,1762613174370,220.0,0.00015527,2]
[393409516,1762613416311,-1360.03578647,0.00015866,2]
[393409525,1762613431370,-155.14,0.00015966,2]
[393409526,1762613431380,-300.0,0.00016583,2]
[393409527,1762613431390,-188.87050046,0.00016584,2]
[393409528,1762613431401,-259.85485886,0.00016584,2]
[393409529,1762613431411,-5838.14465393,0.00016584,2]
[393409530,1762613431421,-629.76667585,0.00016584,2]
[393409531,1762613431430,-155.14,0.00016589,2]
[393409532,1762613431440,-500.0,0.00016673,2]
[393409534,1762613431449,-151.0,0.00016674,2]
[393409535,1762613431459,-151.0,0.00016674,2]
[393409536,1762613431469,-151.0,0.00016674,2]
[393409537,1762613431479,-151.0,0.00016674,2]
[393409538,1762613431488,-151.0,0.00016674,2]
[393409539,1762613431499,-151.0,0.00016674,2]
[393409540,1762613431508,-151.0,0.00016674,2]
[393409541,1762613431520,-151.0,0.00016674,2]
[393409542,1762613431534,-151.0,0.00016674,2]
[393409543,1762613431544,-151.0,0.00016674,2]
[393409544,1762613431554,-151.0,0.00016674,2]
[393409545,1762613431563,-151.0,0.00016674,2]
[393409546,1762613431573,-151.0,0.00016674,2]
[393409547,1762613431582,-209.92031501,0.00016674,2]
[393409548,1762613431592,-500.0,0.00016683,2]
[393409549,1762613431602,-298.38983775,0.00016683,2]
[393409550,1762613431612,-500.0,0.00016684,2]
[393409551,1762613431622,-500.0,0.00016684,2]
[393409552,1762613431631,-24078.52205844,0.00016684,2]
[393409553,1762613431643,-28789.9213163,0.00016684,2]
[393409554,1762613431654,-19682.37716079,0.00016684,2]
[393409555,1762613431669,-702.23301988,0.00016684,2]
[393409556,1762613431680,-394.17718249,0.00016684,2]
[393409557,1762613431691,-668.58325865,0.00016684,2]
[393409558,1762613431703,-41194.04372157,0.00016684,2]
[393409559,1762613431714,-31814.66957466,0.00016684,2]
[393409560,1762613431725,-1302.0,0.00016684,2]
[393409561,1762613431744,-2785.11962538,0.00016684,2]
[393409562,1762613431755,-2483.07335103,0.00016684,2]
[393409563,1762613431766,-985.92817948,0.00016684,2]
[393409564,1762613431777,-3948.08119199,0.00016684,2]
[393409671,1762613437361,-3530.8,0.00016684,2]
[393409672,1762613437417,-2797.73511013,0.00016684,2]
[393409673,1762613437428,-2744.25566807,0.00016684,2]
[393409674,1762613437440,-19490.69710819,0.00016684,2]
[393409675,1762613437474,-14888.16928486,0.00016684,2]
[393409688,1762613439450,-3434.44,0.00016684,2]
[393409689,1762613439463,-377.58142882,0.00016684,2]
[393409690,1762613439475,-1427.5027801,0.00016684,2]
[393409691,1762613439529,-124837.36047917,0.00016684,2]
[393409692,1762613439540,-1000.0,0.00016684,2]
[393409693,1762613439550,-3652.71,0.00016684,2]
[393409694,1762613439560,-926.88,0.00016684,2]
[393409695,1762613439569,-225.08,0.00016684,2]
[393409696,1762613439579,-150.99,0.00016684,2]
[393409697,1762613439589,-9999.99,0.00016684,2]
[393409698,1762613439603,-162.83467492,0.00016778,2]
[393409699,1762613439624,-250.0,0.00017165,2]
[393409700,1762613439640,-250.0,0.00017165,2]
[393409701,1762613439651,-155.14,0.00017211,2]
[393409702,1762613439661,-200.0,0.00017474,2]
[393409703,1762613439672,-155.14,0.00017833,2]
[393409704,1762613439681,-160.13000037,0.0001836,2]
[393409705,1762613439691,-155.14,0.00018456,2]
[393409706,1762613439700,-500.0,0.00018459,2]
[393409707,1762613439711,-165.03645123,0.00018459,2]
[393409708,1762613439720,-175.7142417,0.00018459,2]
[393409709,1762613439730,-16809.2103263,0.0001846,2]
[393409710,1762613439740,-24270.7806616,0.0001846,2]
[393409711,1762613439749,-1181.9898233,0.0001846,2]
[393409712,1762613439758,-5838.14465385,0.00019063,2]
[393409713,1762613439768,-155.14,0.00019078,2]
[393409714,1762613439777,-300.0,0.00019259,2]
[393409715,1762613439787,-155.14,0.000197,2]
[393409716,1762613439796,-150.0,0.00019701,2]
[393409717,1762613439806,-150.0,0.00019701,2]
[393409718,1762613439816,-448.72535932,0.00019771,2]
[393409719,1762613439825,-150.0,0.00019838,2]
[393409720,1762613439834,-200.0,0.00019975,2]
[393409722,1762613439844,-361.75,0.00020187,2]
[393409725,1762613439855,-478.09862864,0.00020196,2]
[393409726,1762613439865,-155.14,0.00020323,2]
[393409727,1762613439875,-150.0,0.00020323,2]
[393409728,1762613439884,-150.0,0.00020323,2]
[393409729,1762613439894,-2724.99,0.00020424,2]
[393409730,1762613439905,-273.0,0.0002046,2]
[393409731,1762613439915,-150.0,0.0002046,2]
[393409732,1762613439925,-166.66,0.00020567,2]
[393409733,1762613439935,-200.0,0.00020597,2]
[393409734,1762613439946,-300.0,0.00020629,2]
[393409735,1762613439957,-160.13000032,0.00020641,2]
[393409736,1762613439968,-16809.2103263,0.00020908,2]
[393409737,1762613439980,-150.0,0.00021194,2]
[393409738,1762613439992,-150.0,0.00021194,2]
[393409739,1762613440004,-166.66,0.00021246,2]
[393409740,1762613440016,-150.0,0.00021331,2]
[393409741,1762613440028,-999.0,0.00021453,3]
[393409742,1762613440038,-200.0,0.00021468,2]
[393409743,1762613440049,-5838.14465385,0.00021542,2]
[393409744,1762613440060,-166.66,0.00021925,2]
[393409745,1762613440072,-5415.5431759,0.00022373,2]
[393409746,1762613440084,-200.0,0.00022532,2]
[393409747,1762613440095,-166.66,0.00022604,2]
[393409748,1762613440109,-160.13000032,0.00022923,2]
[393409749,1762613440120,-448.72535932,0.00022958,2]
[393409750,1762613440132,-1208.3710161,0.00023246,2]
[393409751,1762613440143,-166.66,0.00023283,2]
[393409752,1762613440156,-16809.2103263,0.00023357,2]
[393409753,1762613440167,-162.43587805,0.00023589,2]
[393409754,1762613440180,-182.11553545,0.00023931,2]
[393409755,1762613440192,-166.66,0.00023962,2]
[393409756,1762613440203,-5838.14465385,0.0002402,2]
[393409757,1762613440214,-162.83467492,0.0002415,2]
[393409758,1762613440225,-182.11553546,0.0002426,2]
[393409759,1762613440241,-702.01997823,0.000248,2]
[393409760,1762613440252,-60991.80841411,0.000248,3]
[393409761,1762613440266,-7769.06032503,0.000248,3]
[393409762,1762613440279,-2117.81222025,0.000248,3]
[393409763,1762613440293,-1580.1698,0.000248,3]
[393409764,1762613440307,-3421.210133,0.000248,3]
[393409765,1762613440320,-677.7,0.000248,3]
[393409766,1762613440335,-1212.12124319,0.000248,3]
[393409767,1762613440356,-318.01194199,0.000248,3]
[393409768,1762613440371,-838.94572689,0.000248,3]
[393409769,1762613440385,-1528.70657414,0.000248,3]
[393409770,1762613440399,-5284.26956182,0.000248,3]
[393409771,1762613440412,-502.72739949,0.000248,3]
[393409772,1762613440430,-3695.0,0.000248,3]
[393409773,1762613440444,-777.12919889,0.000248,3]
[393409774,1762613440462,-11070.0,0.000248,3]
[393409793,1762613442518,-1012.97035628,0.000248,3]
[393409800,1762613442580,-2563.9802088,0.000248,3]
[393409803,1762613442595,-33802.24063012,0.000248,3]
[393409805,1762613442606,-160.13000032,0.00025204,2]
[393409807,1762613442618,-1000.0,0.00025447,2]
[393409808,1762613442629,-2000.0,0.000255,2]
[393409809,1762613442641,-16809.2103263,0.00025805,2]
[393409810,1762613442651,-250.0,0.00025839,2]
[393409811,1762613442663,-960.21,0.00026112,2]
[393409812,1762613442677,-448.72535932,0.00026145,2]
[393409813,1762613442690,-359.22,0.00026371,2]
[393409814,1762613442703,-1000.0,0.00026401,2]
[393409815,1762613442715,-5838.14465385,0.00026499,2]
[393409816,1762613442727,-361.75,0.00026676,2]
[393409817,1762613442738,-1580.36,0.00026784,2]
[393409818,1762613442748,-500.0,0.000268,2]
[393409819,1762613442759,-702.01997818,0.00027149,2]
[393409820,1762613442771,-1000.0,0.00027355,2]
[393409821,1762613442782,-1500.0,0.00027397,16]
[393409822,1762613442792,-160.13000032,0.00027486,2]
[393409823,1762613442803,-1608.15,0.00027671,30]
[393409824,1762613442814,-487.02,0.00027965,2]
[393409825,1762613442826,-415.53259,0.00028,4]
[393409826,1762613442837,-251.374851,0.00028168,30]
[393409827,1762613442848,-150.0,0.00028168,30]
[393409828,1762613442861,-500.0,0.00028175,5]
[393409829,1762613442874,-1000.0,0.0002831,2]
[393409830,1762613442887,-150.0,0.00028421,2]
[393409831,1762613442897,-150.0,0.00028421,2]
[393409832,1762613442908,-1424.457489,0.00028442,30]
[393409833,1762613442918,-34790.9659335,0.00028716,3]
[393409834,1762613442928,-26951.6679005,0.00028716,3]
[393409835,1762613442939,-3424.0,0.00028726,2]
[393409836,1762613442949,-1316.0,0.00028726,2]
[393409837,1762613442959,-607.0,0.00028726,2]
[393409838,1762613442970,-574.0,0.00028726,2]
[393409839,1762613442981,-1596.0,0.00028726,2]
[393409840,1762613442992,-820.0,0.00028726,2]
[393409841,1762613443003,-1273.0,0.00028726,2]
[393409842,1762613443016,-812.0,0.00028726,2]
[393409843,1762613443032,-6475.0,0.00028726,2]
[393409844,1762613443044,-2142.0,0.00028726,2]
[393409845,1762613443055,-1188.0,0.00028726,2]
[393409846,1762613443067,-5838.14465385,0.00028978,2]
[393409847,1762613443077,-2000.0,0.000292,2]
[393409848,1762613443088,-1000.0,0.00029264,2]
[393409849,1762613443099,-448.72535932,0.00029332,2]
[393409850,1762613443110,-702.01997818,0.00029497,2]
[393409851,1762613443121,-160.13000032,0.00029767,15]
[393409852,1762613443131,-26951.6679005,0.00029925,3]
[393409853,1762613443146,-5000.0,0.00030389,2]
[393409854,1762613443157,-199.0,0.0003041,7]
[393409855,1762613443169,-34790.9659335,0.00030878,3]
[393409856,1762613443180,-28684.61307643,0.00030888,60]
[393409857,1762613443191,-199.0,0.00030958,8]
[393409858,1762613443203,-5838.14465385,0.00031457,2]
[393409859,1762613443213,-199.0,0.00031506,9]
[393409860,1762613443224,-1000.0,0.00031517,30]
[393409861,1762613443235,-1000.0,0.00031517,30]
[393409862,1762613443247,-1000.0,0.00031517,30]
[393409863,1762613443257,-162.83467492,0.00031521,2]
[393409864,1762613443269,-3424.0,0.00031726,2]
[393409865,1762613443280,-1316.0,0.00031726,2]
[393409866,1762613443291,-607.0,0.00031726,2]
[393409867,1762613443301,-574.0,0.00031726,2]
[393409868,1762613443312,-1596.0,0.00031726,2]
[393409869,1762613443322,-820.0,0.00031726,2]
[393409870,1762613443333,-650.146,0.00031726,2]
[393409871,1762613443343,-812.0,0.00031726,2]
[393409872,1762613443356,-2142.0,0.00031726,2]
[393409873,1762613443367,-1188.0,0.00031726,2]
[393409874,1762613443377,-702.01997818,0.00031846,2]
[393409875,1762613443388,-400.0,0.000319,11]
[393409876,1762613443398,-26951.6679005,0.00031965,3]
[393409877,1762613443409,-170.542,0.00031975,31]
[393409878,1762613443419,-2622.119,0.00031975,31]
[393409879,1762613443430,-34790.9659335,0.00031988,3]
[393409880,1762613443441,-5998.89,0.00032007,2]
[393409881,1762613443451,-160.13000032,0.00032049,15]
[393409882,1762613443462,-199.0,0.00032054,10]
[393409883,1762613443473,-26951.6679005,0.00032114,3]
[393409884,1762613443483,-34790.9659335,0.00032124,3]
[393409885,1762613443494,-26951.6679005,0.00032124,3]
[393409886,1762613443506,-63944.0692381,0.00032134,2]
[393409887,1762613443516,-200.0,0.00032189,2]
[393409888,1762613443527,-1331.0,0.0003219,5]
[393409889,1762613443538,-200.0,0.0003219,2]
[393409890,1762613443548,-1000.0,0.00032244,2]
[393409891,1762613443560,-473.74191956,0.0003245,2]
[393409892,1762613443570,-448.72535932,0.00032519,2]
[393409893,1762613443581,-318.10445878,0.000326,120]
[393409894,1762613443592,-327.01911882,0.00032602,11]
[393409895,1762613443602,-2411.14,0.00032798,2]
[393409896,1762613443613,-169.11,0.00032798,2]
[393409897,1762613443624,-150.0,0.00032798,2]
[393409898,1762613443635,-150.0,0.00032798,2]
[393409899,1762613443646,-169.11,0.00032798,2]
[393409900,1762613443656,-213.32,0.00032798,2]
[393409901,1762613443667,-169.11,0.00032798,2]
[393409902,1762613443677,-169.11,0.00032798,2]
[393409903,1762613443688,-150.0,0.00032798,2]
[393409904,1762613443698,-277.7978356,0.00032876,15]
[393409905,1762613443709,-500.0,0.00032876,2]
[393409906,1762613443720,-367.57190935,0.00032876,2]
[393409907,1762613443731,-500.0,0.00032876,2]
[393409908,1762613443742,-500.0,0.00032876,2]
[393409909,1762613443753,-500.0,0.00032876,2]
[393409910,1762613443764,-500.0,0.00032876,2]
[393409911,1762613443775,-500.0,0.00032876,2]
[393409912,1762613443786,-500.0,0.00032876,2]
[393409913,1762613443796,-500.0,0.00032876,2]
[393409914,1762613443807,-500.0,0.00032876,2]
[393409915,1762613443818,-500.0,0.00032876,2]
[393409916,1762613443830,-537.4511076,0.00032876,2]
[393409917,1762613443841,-2000.0,0.000329,2]
[393409918,1762613444035,-176.87,0.00033112,2]
[393409919,1762613444052,-361.75,0.00033165,2]
[393409920,1762613444063,-477.3,0.00033233,2]
[393409921,1762613444074,-698.81,0.00033233,2]
[393409922,1762613444084,-477.3,0.00033233,2]
[393409923,1762613444094,-477.3,0.00033233,2]
[393409924,1762613444108,-477.3,0.00033233,2]
[393409925,1762613444117,-477.3,0.00033233,2]
[393409926,1762613444127,-159.86,0.00033233,2]
[393409927,1762613444137,-168.18,0.00033305,2]
[393409928,1762613444146,-224.23,0.00033559,2]
[393409929,1762613444156,-500.0,0.00033709,5]
[393409930,1762613444165,-595.29464106,0.00033709,5]
[393409931,1762613444175,-392.14835424,0.00033709,5]
[393409932,1762613444185,-500.0,0.00033709,5]
[393409933,1762613444195,-501.39454671,0.00033709,5]
[393409934,1762613444204,-500.0,0.00033709,5]
[393409935,1762613444215,-223.98329971,0.00033709,5]
[393409936,1762613444225,-235.33606138,0.00033709,5]
[393409937,1762613444235,-34790.9659335,0.00033915,3]
[393409938,1762613444244,-26951.6679005,0.00033915,3]
[393409939,1762613444255,-5838.14465385,0.00033935,2]
[393409940,1762613444265,-300.2,0.00034055,2]
[393409941,1762613444274,-1407.2,0.00034055,2]
[393409942,1762613444284,-176.98,0.00034055,2]
[393409943,1762613444294,-150.0,0.00034055,2]
[393409944,1762613444305,-150.0,0.00034055,2]
[393409945,1762613444315,-422.56,0.00034055,2]
[393409946,1762613444325,-176.98,0.00034055,2]
[393409947,1762613444335,-150.0,0.00034055,2]
[393409948,1762613444344,-415.88,0.00034055,2]
[393409949,1762613444354,-415.88,0.00034055,2]
[393409950,1762613444363,-176.98,0.00034055,2]
[393409951,1762613444373,-150.0,0.00034055,2]
[393409952,1762613444383,-150.0,0.00034055,2]
[393409953,1762613444392,-415.88,0.00034055,2]
[393409954,1762613444402,-176.98,0.00034055,2]
[393409955,1762613444412,-176.98,0.00034055,2]
[393409956,1762613444421,-150.0,0.00034055,2]
[393409957,1762613444430,-176.98,0.00034055,2]
[393409958,1762613444440,-176.98,0.00034055,2]
[393409959,1762613444449,-176.98,0.00034055,2]
[393409960,1762613444459,-176.98,0.00034055,2]
[393409961,1762613444469,-175.01,0.00034055,2]
[393409962,1762613444479,-702.01997818,0.00034194,2]
[393409963,1762613444489,-386.48130404,0.00034257,5]
[393409964,1762613444499,-505.85898911,0.00034257,5]
[393409965,1762613444509,-160.13000032,0.0003433,15]
[393409966,1762613444519,-328.0,0.00034417,2]
[393409967,1762613444529,-500.0,0.00034513,7]
[393409968,1762613444539,-150.43,0.00034716,2]
[393409969,1762613444548,-3424.0,0.00034726,2]
[393409970,1762613444557,-1304.172,0.00034726,2]
[393409971,1762613444566,-574.0,0.00034726,2]
[393409972,1762613444575,-820.0,0.00034726,2]
[393409973,1762613444588,-2142.0,0.00034726,2]
[393409974,1762613444597,-1188.0,0.00034726,2]
[393409975,1762613444607,-1608.15,0.00034867,30]
[393409976,1762613444616,-160.05182826,0.000349,7]
[393409977,1762613444625,-157.318582,0.00034946,60]
[393409978,1762613444636,-156.626827,0.00034946,60]
[393409979,1762613444645,-157.440351,0.00034946,60]
[393409980,1762613444655,-226.447848,0.00034946,60]
[393409981,1762613444664,-211.921934,0.00034946,60]
[393409982,1762613444674,-239.84143,0.00034946,60]
[393409983,1762613444684,-34790.9659335,0.0003497,3]
[393409984,1762613444694,-26951.6679005,0.0003497,3]
[393409985,1762613444703,-26951.6679005,0.0003498,3]
[393409986,1762613444713,-34790.9659335,0.0003499,3]
[393409987,1762613444724,-26951.6679005,0.0003499,3]
[393409988,1762613444733,-153.2,0.00035,30]
[393409989,1762613444744,-356.55,0.00035,14]
[393409990,1762613444754,-79153.1204685,0.00035,2]
[393409991,1762613444763,-371.11501001,0.00035053,3]
[393409992,1762613444773,-328.0,0.00035375,120]
[393409993,1762613444782,-328.0,0.0003554,2]
[393409994,1762613444791,-200.0,0.00035608,5]
[393409995,1762613444800,-200.0,0.00035608,5]
[393409996,1762613444810,-200.0,0.00035608,5]
[393409997,1762613444819,-200.0,0.00035608,5]
[393409998,1762613444830,-200.0,0.00035608,5]
[393409999,1762613444839,-200.0,0.00035608,5]
[393410000,1762613444848,-200.0,0.00035608,5]
[393410001,1762613444858,-200.0,0.00035608,5]
[393410002,1762613444867,-200.0,0.00035608,5]
[393410003,1762613444877,-200.0,0.00035609,5]
[393410004,1762613444886,-500.0,0.00035623,30]
[393410005,1762613444895,-448.72535932,0.00035706,2]
[393410006,1762613444905,-900.0,0.000359,13]
[393410007,1762613444914,-302.0,0.00036,2]
[393410008,1762613444923,-445.0,0.00036,2]
[393410009,1762613444934,-328.0,0.00036133,7]
[393410010,1762613444945,-34790.9659335,0.0003622,3]
[393410011,1762613444956,-26951.6679005,0.0003622,3]
[393410012,1762613444966,-14267.8504096,0.00036229,2]
[393410013,1762613444976,-328.0,0.00036274,2]
[393410014,1762613444986,-258.45869454,0.00036279,60]
[393410015,1762613444995,-356.55,0.000363,14]
[393410016,1762613445005,-5838.14465385,0.00036414,2]
[393410017,1762613445015,-325.0,0.00036464,2]
[393410018,1762613445025,-702.01997818,0.00036543,2]
[393410019,1762613445035,-960.21,0.00036556,2]
[393410020,1762613445045,-325.0,0.00036572,7]
[393410021,1762613445054,-2000.0,0.000366,2]
[393410022,1762613445065,-153.2,0.000366,30]
[393410023,1762613445075,-160.13000032,0.00036612,15]
[393410024,1762613445084,-500.0,0.0003663,30]
[393410025,1762613445094,-300.0,0.00036645,2]
[393410026,1762613445107,-325.0,0.00036685,2]
[393410027,1762613445116,-300.0,0.00036747,2]
[393410028,1762613445126,-328.0,0.00036802,2]
[393410029,1762613445136,-300.0,0.00036816,2]
[393410030,1762613445145,-325.0,0.00036878,2]
[393410031,1762613445155,-300.0,0.00036894,2]
[393410032,1762613445165,-300.0,0.00036919,2]
[393410033,1762613445174,-300.0,0.00036964,2]
[393410035,1762613445184,-182.35821551,0.00037,2]
[393410036,1762613445194,-300.0,0.00037052,2]
[393410037,1762613445204,-500.0,0.000371,30]
[393410038,1762613445214,-300.0,0.0003714,2]
[393410039,1762613445224,-325.0,0.00037142,2]
[393410040,1762613445234,-3183.5877468,0.00037143,2]
[393410041,1762613445244,-325.0,0.00037155,120]
[393410042,1762613445255,-26951.6679005,0.0003717,4]
[393410043,1762613445266,-34790.9659335,0.0003717,4]